bitfinex-derivatives/quotes_BTCF0:USTF0_20250101
["timestamp","ask_amount","ask_price","bid_price","bid_amount"]
[1735729472514,0.053704,93280.0,93277.0,0.053705]
[1735729472713,0.053704,93280.0,93270.0,0.11210739]
[1735729473306,0.26199222,93283.0,93274.0,0.3608]
[1735729473909,0.053704,93280.0,93278.0,0.053705]
[1735729476521,0.054704,93280.0,93278.0,0.053705]
[1735729487012,0.001,93280.0,93274.0,0.3608]
[1735729487215,0.053707,93275.0,93274.0,0.3608]
[1735729487422,0.053707,93275.0,93274.0,0.414507]
[1735729496426,0.3608,93288.0,93279.0,0.053704]
[1735729497526,0.38445877,93288.0,93279.0,0.053704]
[1735729498126,0.38645877,93288.0,93279.0,0.053704]
[1735729498630,0.053703,93281.0,93279.0,0.053704]
[1735729499127,0.053704,93280.0,93279.0,0.053704]
[1735729501522,0.054704,93280.0,93279.0,0.053704]
[1735729502019,0.001,93280.0,93279.0,0.053704]
[1735729502224,0.002,93280.0,93279.0,0.053704]
[1735729504327,0.002,93280.0,93279.0,0.07516889]
[1735729507926,0.002,93280.0,93279.0,0.053704]
[1735729508534,0.053698,93290.0,93289.0,0.053699]
[1735729510332,0.15560434,93290.0,93289.0,0.053699]
[1735729511335,0.16060434,93290.0,93289.0,0.053699]
[1735729513529,0.061698,93290.0,93289.0,0.053699]
[1735729515627,0.008,93290.0,93289.0,0.053699]
[1735729516123,0.053691,93303.0,93289.0,0.053699]
[1735729516329,0.053691,93303.0,93302.0,0.053691]
[1735729517439,0.056691,93303.0,93302.0,0.053691]
[1735729518022,0.053691,93303.0,93302.0,0.053691]
[1735729518230,0.067691,93303.0,93302.0,0.054691]
[1735729518927,0.067691,93303.0,93302.0,0.001]
[1735729519138,0.428491,93303.0,93279.0,0.053703]
[1735729519333,0.053701,93283.0,93279.0,0.053703]
[1735729520132,0.053701,93283.0,93281.0,0.053702]
[1735729523939,0.414499,93289.0,93287.0,0.053699]
[1735729524328,0.053699,93289.0,93287.0,0.053699]
[1735729524529,0.09890847,93288.0,93287.0,0.053699]
[1735729525842,0.10190847,93288.0,93287.0,0.053699]
[1735729526547,0.003,93288.0,93287.0,0.053699]
[1735729526937,0.005,93288.0,93287.0,0.053699]
[1735729528044,0.004,93288.0,93287.0,0.053699]
[1735729533847,0.003,93288.0,93287.0,0.053699]
[1735729534046,0.3608,93303.0,93302.0,0.053691]
[1735729536153,0.3618,93303.0,93302.0,0.053691]
[1735729536354,0.3658,93303.0,93302.0,0.053691]
[1735729536857,0.3648,93303.0,93302.0,0.053691]
[1735729537057,0.3668,93303.0,93302.0,0.053691]
[1735729537649,0.3648,93303.0,93302.0,0.053691]
[1735729537958,0.3668,93303.0,93302.0,0.053691]
[1735729538156,0.053694,93296.0,93295.0,0.00056]
[1735729538463,0.053696,93294.0,93293.0,0.36136]
[1735729538646,0.053696,93294.0,93293.0,0.3608]
[1735729539155,0.053701,93287.0,93286.0,0.0537]
[1735729539558,0.053701,93287.0,93282.0,0.3608]
[1735729539749,0.053702,93283.0,93282.0,0.3608]
[1735729540356,0.052702,93283.0,93282.0,0.3608]
[1735729541066,0.052702,93283.0,93282.0,0.3618]
[1735729542858,0.052702,93283.0,93282.0,0.3668]
[1735729543250,0.052702,93283.0,93282.0,0.3618]
[1735729543555,0.052702,93283.0,93282.0,0.3668]
[1735729546760,0.052702,93283.0,93282.0,0.006]
[1735729548267,0.07343251,93283.0,93282.0,0.006]
[1735729548561,0.02073051,93283.0,93274.0,0.3608]
[1735729548766,0.053708,93275.0,93274.0,0.3608]
[1735729549469,0.3608,93275.0,93268.0,0.00160799]
[1735729549761,0.053711,93269.0,93268.0,0.00160799]
[1735729549966,0.049711,93269.0,93268.0,0.00160799]
[1735729550270,0.048711,93269.0,93268.0,0.00160799]
[1735729552173,0.048711,93269.0,93268.0,0.00360799]
[1735729552659,0.049711,93269.0,93268.0,0.00360799]
[1735729554172,0.06825344,93269.0,93268.0,0.002]
[1735729557369,0.42905344,93269.0,93268.0,0.002]
[1735729573288,0.43005344,93269.0,93268.0,0.002]
[1735729574189,0.053712,93267.0,93266.0,0.053713]
[1735729575687,0.054712,93267.0,93266.0,0.053713]
[1735729575993,0.055712,93267.0,93266.0,0.053713]
[1735729579592,0.054712,93267.0,93266.0,0.053713]
[1735729580295,0.055712,93267.0,93266.0,0.053713]
[1735729582998,0.002,93267.0,93266.0,0.053713]
[1735729585490,0.055712,93267.0,93266.0,0.053713]
[1735729588601,0.002,93267.0,93266.0,0.053713]
[1735729588799,0.002,93267.0,93266.0,0.414513]
[1735729589502,0.002,93267.0,93266.0,1.914513]
[1735729589893,0.053702,93285.0,93282.0,0.053703]
[1735729590200,0.43344151,93292.0,93276.0,0.414507]
[1735729590390,0.43344151,93292.0,93278.0,0.053705]
[1735729590391,0.053705,93279.0,93278.0,0.053705]
[1735729590795,0.0154756,93290.0,93276.0,0.3608]
[1735729590998,0.053702,93285.0,93283.0,0.053703]
[1735729591297,0.057702,93285.0,93283.0,0.053703]
[1735729591502,0.057702,93285.0,93284.0,0.0322]
[1735729591702,0.37840373,93292.0,93284.0,0.0646]
[1735729591703,0.28380837,93292.0,93284.0,0.0646]
[1735729591906,0.0537,93288.0,93285.0,0.053701]
[1735729592294,0.0537,93288.0,93286.0,0.053701]
[1735729593203,0.0627,93288.0,93286.0,0.053701]
[1735729594293,0.0667,93288.0,93286.0,0.053701]
[1735729594789,0.013,93288.0,93286.0,0.053701]
[1735729594994,0.053701,93287.0,93286.0,0.053701]
[1735729596499,0.066701,93287.0,93286.0,0.053701]
[1735729599102,0.013,93287.0,93277.0,0.0979]
[1735729599296,0.053705,93281.0,93280.0,0.053704]
[1735729599499,0.053706,93277.0,93276.0,0.414507]
[1735729601008,0.055706,93277.0,93276.0,0.414507]
[1735729602507,0.061706,93277.0,93276.0,0.414507]
[1735729603004,0.07865641,93277.0,93276.0,0.414507]
[1735729604211,0.07865641,93277.0,93276.0,0.053707]
[1735729609917,0.008,93277.0,93276.0,0.053707]
[1735729610516,0.008,93277.0,93276.0,1.553707]
[1735729611223,0.008,93277.0,93276.0,0.053707]
[1735729611918,0.008,93277.0,93276.0,0.414507]
[1735729616920,0.008,93277.0,93276.0,0.053707]
[1735729617117,0.008,93277.0,93276.0,0.414507]
[1735729619507,0.008,93277.0,93276.0,0.053707]
[1735729619717,0.008,93277.0,93276.0,0.414507]
[1735729620323,0.008,93277.0,93276.0,0.053707]
[1735729620618,0.053709,93276.0,93275.0,0.053707]
[1735729622125,0.055709,93276.0,93275.0,0.053707]
[1735729622721,0.060709,93276.0,93275.0,0.053707]
[1735729625127,0.007,93276.0,93275.0,0.053707]
[1735729626528,0.007,93276.0,93275.0,1.553707]
[1735729627137,0.007,93276.0,93275.0,0.053707]
[1735729627422,0.007,93276.0,93275.0,0.414507]
[1735729637333,0.007,93276.0,93275.0,0.053707]
[1735729639933,0.005,93276.0,93275.0,0.053707]
[1735729640135,0.007,93276.0,93275.0,0.053707]
[1735729640730,0.005,93276.0,93275.0,0.053707]
[1735729640931,0.007,93276.0,93275.0,0.053707]
[1735729644430,0.007,93276.0,93275.0,0.414507]
[1735729644640,0.007,93276.0,93275.0,0.053707]
[1735729644841,0.007,93276.0,93275.0,0.414507]
[1735729645548,0.007,93276.0,93275.0,1.914507]
[1735729646633,0.3608,93309.0,93275.0,2.1608]
[1735729646834,0.414488,93309.0,93306.0,0.05369]
[1735729647041,0.414488,93309.0,93298.0,0.0469214]
[1735729647244,0.414488,93309.0,93299.0,0.0326]
[1735729647546,0.414488,93309.0,93300.0,1.5]
[1735729647948,0.002,93307.0,93300.0,1.5]
[1735729648448,0.002,93307.0,93306.0,0.05369]
[1735729648942,0.055689,93307.0,93306.0,0.05369]
[1735729649154,0.064689,93307.0,93306.0,0.05469]
[1735729649341,0.062689,93307.0,93306.0,0.05469]
[1735729649545,0.16158203,93307.0,93306.0,0.05469]
[1735729650049,0.15258203,93307.0,93306.0,0.05369]
[1735729650249,0.16858203,93307.0,93306.0,0.05569]
[1735729650447,0.069689,93307.0,93306.0,0.05569]
[1735729650648,0.060689,93307.0,93306.0,0.05469]
[1735729650848,0.066689,93307.0,93306.0,0.05569]
[1735729651050,0.062689,93307.0,93306.0,0.05469]
[1735729652342,0.056689,93307.0,93306.0,0.05369]
[1735729652651,0.063689,93307.0,93306.0,0.05469]
[1735729654655,0.01,93307.0,93306.0,0.05469]
[1735729654842,0.053683,93320.0,93319.0,0.05368]
[1735729655848,0.05528676,93326.0,93325.0,0.05368]
[1735729657054,0.01060776,93326.0,93325.0,0.05468]
[1735729657350,0.01760776,93326.0,93325.0,0.05568]
[1735729658455,0.01760776,93326.0,93325.0,0.41648]
[1735729658957,0.05367,93342.0,93340.0,0.053671]
[1735729660160,0.3778,93341.0,93340.0,0.055671]
[1735729661855,0.3688,93341.0,93340.0,0.054671]
[1735729662056,0.3738,93341.0,93340.0,0.055671]
[1735729662453,0.3708,93341.0,93340.0,0.055671]
[1735729662764,0.01,93341.0,93340.0,0.055671]
[1735729663060,0.01,93341.0,93340.0,0.054671]
[1735729663259,0.053659,93361.0,93356.0,0.053662]
[1735729663560,0.053659,93361.0,93359.0,0.05366]
[1735729664260,0.3608,93368.0,93359.0,0.05366]
[1735729664559,0.053656,93366.0,93359.0,0.05366]
[1735729665555,0.3608,93368.0,93359.0,0.05366]
[1735729665867,0.3608,93368.0,93367.0,0.053656]
[1735729666758,0.3608,93368.0,93366.0,0.053657]
[1735729666759,0.004,93368.0,93366.0,0.053657]
[1735729668361,0.004,93368.0,93365.0,0.3608]
[1735729668362,0.005,93368.0,93367.0,0.054656]
[1735729669463,0.005,93368.0,93367.0,0.053656]
[1735729671064,0.053652,93374.0,93361.0,0.3608]
[1735729671266,0.001,93368.0,93367.0,0.053656]
[1735729672366,0.414443,93390.0,93378.0,0.05365]
[1735729672957,0.053644,93388.0,93378.0,0.05365]
[1735729673555,0.053644,93388.0,93378.0,0.05465]
[1735729673755,0.05525182,93387.0,93378.0,0.05465]
[1735729673964,0.41605182,93387.0,93386.0,0.053645]
[1735729674164,0.053648,93382.0,93378.0,0.001]
[1735729674364,0.053648,93382.0,93381.0,0.053648]
[1735729676058,0.36240682,93387.0,93385.0,0.053645]
[1735729676773,0.36240682,93387.0,93386.0,0.053645]
[1735729678067,0.41605182,93387.0,93386.0,0.053645]
[1735729678469,0.42005182,93387.0,93386.0,0.053645]
[1735729678666,0.053645,93386.0,93385.0,0.001]
[1735729679071,0.053645,93386.0,93376.0,0.053651]
[1735729679271,0.05365,93377.0,93376.0,0.053651]
[1735729680468,0.05365,93377.0,93376.0,0.054651]
[1735729681871,0.05665,93377.0,93376.0,0.001]
[1735729682277,0.11975,93377.0,93376.0,0.001]
[1735729686567,0.05665,93377.0,93376.0,0.054651]
[1735729686780,0.003,93377.0,93376.0,0.054651]
[1735729687476,0.05665,93377.0,93376.0,0.001]
[1735729693487,0.05665,93377.0,93376.0,0.054651]
[1735729694982,0.05665,93377.0,93376.0,0.001]
[1735729704097,0.05665,93377.0,93376.0,0.054651]
[1735729704098,0.003,93377.0,93376.0,0.054651]
[1735729704493,0.002,93377.0,93376.0,0.054651]
[1735729704696,0.002,93377.0,93376.0,1.554651]
[1735729704994,0.002,93377.0,93376.0,0.054651]
[1735729705703,0.002,93377.0,93376.0,0.053651]
[1735729706299,0.414448,93381.0,93375.0,0.0619]
[1735729706502,0.414448,93381.0,93380.0,0.053649]
[1735729707206,0.51326362,93381.0,93380.0,0.053649]
[1735729707805,0.45961562,93381.0,93380.0,0.053649]
[1735729708103,0.00160682,93387.0,93384.0,0.053646]
[1735729708104,0.053646,93385.0,93384.0,0.053646]
[1735729709200,0.053646,93385.0,93384.0,0.054646]
[1735729709598,0.057646,93385.0,93384.0,0.054646]
[1735729709892,0.414435,93405.0,93399.0,0.053638]
[1735729709893,0.3608,93405.0,93399.0,0.053638]
[1735729710096,0.053636,93402.0,93399.0,0.053638]
[1735729711307,0.104,93400.0,93399.0,0.053638]
[1735729712198,0.104,93400.0,93399.0,0.054638]
[1735729718799,0.0541,93400.0,93399.0,0.054638]
[1735729718995,0.053627,93418.0,93417.0,0.053627]
[1735729720306,0.054627,93418.0,93417.0,0.054627]
[1735729720908,0.15340523,93418.0,93417.0,0.054627]
[1735729721414,0.15340523,93418.0,93417.0,0.055627]
[1735729723710,0.054627,93418.0,93417.0,0.055627]
[1735729724715,0.001,93418.0,93417.0,0.055627]
[1735729730217,0.053626,93420.0,93419.0,0.053626]
[1735729731929,0.053626,93420.0,93419.0,0.054626]
[1735729734323,0.053626,93420.0,93419.0,0.001]
[1735729734523,0.053628,93416.0,93415.0,0.053629]
[1735729735519,0.053628,93416.0,93415.0,0.054629]
[1735729737824,0.053628,93416.0,93415.0,0.053629]
[1735729738026,0.053628,93416.0,93415.0,0.054629]
[1735729738428,0.15240647,93416.0,93415.0,0.054629]
[1735729745726,0.053628,93416.0,93415.0,0.054629]
[1735729748631,0.15240657,93416.0,93415.0,0.054629]
[1735729767945,0.09877857,93416.0,93415.0,0.054629]
[1735729768946,0.09877857,93416.0,93415.0,0.115129]
[1735729770244,0.0136555,93423.0,93415.0,0.115129]
[1735729770555,0.053623,93425.0,93424.0,0.053623]
[1735729771144,0.15240009,93425.0,93424.0,0.053623]
[1735729772150,0.15240009,93425.0,93424.0,0.054623]
[1735729773540,0.16499271,93425.0,93424.0,0.054623]
[1735729779352,0.16499271,93425.0,93424.0,0.001]
[1735729793554,0.16504513,93425.0,93424.0,0.001]
[1735729796765,0.053626,93419.0,93418.0,0.053627]
[1735729799062,0.01264504,93425.0,93415.0,0.0728022]
[1735729799258,0.01264504,93425.0,93422.0,0.053624]
[1735729799468,0.053624,93423.0,93422.0,0.053624]
[1735729799971,0.053627,93418.0,93417.0,0.053627]
[1735729805570,0.15240313,93418.0,93417.0,0.053627]
[1735729806972,0.09877613,93418.0,93417.0,0.053627]
[1735729808865,5.242e-05,93425.0,93424.0,0.053623]
[1735729810068,0.0988278,93425.0,93424.0,0.053623]
[1735729812776,0.0988278,93425.0,93424.0,0.054623]
[1735729813674,5.242e-05,93425.0,93424.0,0.054623]
[1735729815079,5.242e-05,93425.0,93424.0,0.415423]
[1735729815268,0.053613,93442.0,93438.0,0.053615]
[1735729815470,0.053614,93441.0,93440.0,0.053614]
[1735729816074,0.15237108,93441.0,93440.0,0.053614]
[1735729816979,0.15237108,93441.0,93440.0,0.054614]
[1735729818080,0.053614,93441.0,93440.0,0.054614]
[1735729819078,0.00160589,93444.0,93443.0,0.053613]
[1735729819382,0.053609,93450.0,93448.0,0.05361]
[1735729819691,0.053609,93450.0,93449.0,0.053609]
[1735729821688,0.0328,93456.0,93448.0,0.001]
[1735729821869,0.053609,93449.0,93448.0,0.001]
[1735729822385,0.053606,93454.0,93449.0,0.001]
[1735729822579,0.053608,93450.0,93449.0,0.001]
[1735729822883,0.053613,93443.0,93440.0,0.053614]
[1735729823082,0.053613,93443.0,93438.0,0.3608]
[1735729823381,0.053613,93443.0,93441.0,0.053613]
[1735729824186,0.053606,93454.0,93441.0,0.053613]
[1735729824486,0.053613,93442.0,93441.0,0.053613]
[1735729825581,0.053615,93439.0,93438.0,0.3608]
[1735729825785,0.053619,93431.0,93430.0,0.00160531]
[1735729828081,0.053619,93431.0,93430.0,0.00260531]
[1735729828294,0.053619,93431.0,93430.0,0.00127448]
[1735729829087,0.15239422,93431.0,93430.0,0.00127448]
[1735729829584,0.16430417,93431.0,93430.0,0.00127448]
[1735729835480,0.06552895,93431.0,93430.0,0.00127448]
[1735729837990,0.06552895,93431.0,93430.0,0.05489448]
[1735729839192,0.06552895,93431.0,93430.0,0.05389448]
[1735729841088,0.06552895,93431.0,93430.0,0.05489448]
[1735729844995,0.06552895,93431.0,93430.0,0.00127448]
[1735729847597,0.06552895,93431.0,93430.0,0.00027448]
[1735729847799,0.06552895,93431.0,93430.0,0.00127448]
[1735729850693,0.16429868,93431.0,93430.0,0.00127448]
[1735729853195,0.15238873,93431.0,93430.0,0.41569448]
[1735729853986,0.15238873,93431.0,93430.0,0.41469448]
[1735729860499,0.15238873,93431.0,93430.0,0.41442]
[1735729860702,0.15238873,93431.0,93430.0,0.35404552]
[1735729862812,0.15238873,93431.0,93430.0,0.35504552]
[1735729870808,0.15238873,93431.0,93430.0,0.29467025]
[1735729871110,0.15238873,93431.0,93430.0,0.05462]
[1735729871707,0.15238873,93431.0,93430.0,0.001]
[1735729877617,0.18558873,93431.0,93430.0,0.001]
[1735729885816,0.053625,93423.0,93421.0,0.053625]
[1735729886216,0.3608,93427.0,93421.0,0.053625]
[1735729886422,0.053625,93422.0,93421.0,0.053625]
[1735729888331,0.25369695,93427.0,93421.0,0.053625]
[1735729889023,0.053625,93422.0,93421.0,0.053625]
[1735729892521,0.053625,93421.0,93411.0,0.00160571]
[1735729892719,0.053625,93421.0,93374.0,0.3608]
[1735729892720,0.053637,93400.0,93394.0,0.053641]
[1735729892922,0.05364,93395.0,93394.0,0.053641]
[1735729893728,0.04964,93395.0,93394.0,0.053641]
[1735729894229,0.3608,93400.0,93386.0,0.0629]
[1735729894430,0.3608,93400.0,93395.0,0.05364]
[1735729894821,0.414437,93400.0,93395.0,0.05364]
[1735729895130,0.414437,93400.0,93396.0,0.053639]
[1735729895326,0.42587955,93400.0,93396.0,0.053639]
[1735729896322,0.42587955,93400.0,93396.0,0.056639]
[1735729896832,0.42687955,93400.0,93396.0,0.063639]
[1735729898427,0.053638,93399.0,93396.0,0.063639]
[1735729899425,0.053638,93399.0,93396.0,0.060639]
[1735729899631,0.053638,93399.0,93396.0,0.056639]
[1735729899924,0.053638,93399.0,93396.0,0.062639]
[1735729900252,0.053639,93398.0,93396.0,0.009]
[1735729901234,0.053639,93398.0,93396.0,0.003]
[1735729901434,0.053639,93398.0,93396.0,0.006]
[1735729901829,0.053639,93398.0,93396.0,0.005]
[1735729904737,0.053639,93397.0,93396.0,0.005]
[1735729905935,0.053639,93397.0,93396.0,0.003]
[1735729906131,0.37224255,93400.0,93396.0,0.005]
[1735729906337,0.053639,93397.0,93396.0,0.005]
[1735729908729,0.414439,93397.0,93396.0,0.005]
[1735729916151,0.05365,93378.0,93377.0,0.0016063]
[1735729918455,0.05365,93378.0,93377.0,0.0056063]
[1735729918955,0.05465,93378.0,93377.0,0.0146063]
[1735729921459,0.05365,93378.0,93377.0,0.0016063]
[1735729922255,0.15247542,93378.0,93377.0,0.0016063]
[1735729924867,0.16398452,93378.0,93377.0,0.0016063]
[1735729925562,0.0651591,93378.0,93377.0,0.0016063]
[1735729953896,0.053652,93374.0,93373.0,0.06538014]
[1735729954182,0.053644,93389.0,93375.0,0.053652]
[1735729954375,0.053644,93389.0,93382.0,0.3608]
[1735729954578,0.053647,93383.0,93382.0,0.3608]
[1735729956082,0.15245639,93383.0,93382.0,0.3608]
[1735729956679,0.15445639,93383.0,93382.0,0.3608]
[1735729962988,0.055647,93383.0,93382.0,0.3608]
[1735729964980,0.002,93383.0,93382.0,0.3608]
[1735729965196,0.055647,93383.0,93382.0,0.3608]
[1735729971182,0.15445647,93383.0,93382.0,0.3608]
[1735729975392,0.05365,93377.0,93376.0,0.0326]
[1735729975687,0.05365,93377.0,93376.0,0.3934]
[1735729976190,0.15245947,93377.0,93376.0,0.3934]
[1735729976392,0.15245947,93377.0,93376.0,0.3944]
[1735729976892,0.15245947,93377.0,93376.0,0.3954]
[1735729977490,0.05365,93377.0,93376.0,0.3954]
[1735729979495,0.05365,93377.0,93376.0,0.0346]
[1735729979691,0.05365,93377.0,93376.0,0.3954]
[1735729982789,0.05365,93377.0,93376.0,0.3628]
[1735729988101,0.05565,93377.0,93376.0,0.3618]
[1735729988489,0.06065,93377.0,93376.0,0.3608]
[1735729992794,0.05965,93377.0,93376.0,0.3608]
[1735729993703,0.15947016,93377.0,93376.0,0.3608]
[1735730000708,0.06065,93377.0,93376.0,0.3608]
[1735730005810,0.007,93377.0,93376.0,0.414451]
[1735730006010,0.0333,93401.0,93387.0,0.053644]
[1735730006211,0.053643,93390.0,93389.0,0.3608]
[1735730008200,0.15244771,93390.0,93389.0,0.3608]
[1735730009105,0.15644771,93390.0,93389.0,0.3618]
[1735730010311,0.057643,93390.0,93389.0,0.3618]
[1735730011511,0.004,93390.0,93389.0,0.415443]
[1735730022029,0.004,93390.0,93389.0,1.915443]
[1735730024017,0.21195167,93409.0,93389.0,1.915443]
[1735730024215,0.053634,93405.0,93401.0,0.053637]
[1735730025423,0.01545625,93410.0,93401.0,0.053637]
[1735730025628,0.053629,93415.0,93414.0,0.053627]
[1735730031229,0.053629,93415.0,93414.0,0.06440266]
[1735730033022,0.0311,93419.0,93414.0,0.06440266]
[1735730033023,0.0311,93419.0,93418.0,0.053627]
[1735730034225,0.0311,93419.0,93418.0,0.054627]
[1735730035034,0.084726,93419.0,93418.0,0.054627]
[1735730041128,0.084726,93419.0,93418.0,0.001]
[1735730056740,0.18350676,93419.0,93418.0,0.001]
[1735730056948,0.15240676,93419.0,93418.0,0.001]
[1735730063255,0.05363,93413.0,93412.0,0.3608]
[1735730063438,0.15240676,93419.0,93406.0,0.053634]
[1735730063644,0.053633,93407.0,93406.0,0.053634]
[1735730063850,0.053633,93407.0,93406.0,0.414434]
[1735730064551,0.15241376,93407.0,93406.0,0.414434]
[1735730065540,0.01197673,93419.0,93406.0,0.414434]
[1735730065744,0.053633,93408.0,93406.0,0.414434]
[1735730066550,0.053633,93408.0,93407.0,0.053633]
[1735730067847,0.053633,93408.0,93407.0,0.414433]
[1735730068255,0.053633,93408.0,93407.0,0.3608]
[1735730070852,0.15241515,93408.0,93407.0,0.3608]
[1735730072554,0.16327231,93408.0,93407.0,0.3608]
[1735730072762,0.053633,93407.0,93406.0,0.3608]
[1735730073548,0.053633,93407.0,93406.0,0.414434]
[1735730074062,0.15241515,93407.0,93406.0,0.414434]
[1735730075453,0.15241515,93407.0,93406.0,0.3608]
[1735730076255,0.053633,93407.0,93406.0,0.3608]
[1735730076656,0.01085716,93408.0,93386.0,0.3608]
[1735730076657,0.053634,93405.0,93386.0,0.3608]
[1735730076859,0.414437,93400.0,93386.0,0.3608]
[1735730078259,0.51324128,93400.0,93386.0,0.3608]
[1735730079157,0.51324128,93400.0,93390.0,0.07239264]
[1735730080360,0.51324128,93400.0,93390.0,0.12603564]
[1735730080562,0.5240649,93400.0,93390.0,0.12603564]
[1735730082255,0.42526062,93400.0,93390.0,0.12603564]
[1735730082461,0.42526062,93400.0,93386.0,0.3608]
[1735730082764,0.42526062,93400.0,93386.0,0.414445]
[1735730082961,0.42526062,93400.0,93390.0,0.07239264]
[1735730084470,0.52406498,93400.0,93390.0,0.07239264]
[1735730087166,0.52406498,93400.0,93389.0,0.053643]
[1735730090772,0.52406498,93400.0,93390.0,0.053643]
[1735730090961,0.42526062,93400.0,93390.0,0.053643]
[1735730091463,0.42526062,93400.0,93391.0,0.053642]
[1735730091774,0.42526062,93400.0,93390.0,0.07239264]
[1735730091965,0.42526062,93400.0,93391.0,0.0324]
[1735730092767,0.06446062,93400.0,93391.0,0.0324]
[1735730092977,0.06446062,93400.0,93396.0,0.053639]
[1735730093275,0.06446062,93400.0,93397.0,0.0643]
[1735730094559,0.06446062,93400.0,93396.0,0.053639]
[1735730098873,0.06446062,93400.0,93392.0,0.01101834]
[1735730099072,0.06446062,93400.0,93397.0,0.053639]
[1735730100470,0.053637,93400.0,93399.0,0.05524396]
[1735730102676,0.15243373,93400.0,93399.0,0.05524396]
[1735730105176,0.15243373,93400.0,93399.0,0.053638]
[1735730105982,0.053637,93400.0,93399.0,0.053638]
[1735730114080,0.15243344,93400.0,93399.0,0.053638]
[1735730117678,0.09879644,93400.0,93399.0,0.053638]
[1735730118782,0.053632,93410.0,93409.0,0.053632]
[1735730120388,0.09878217,93410.0,93409.0,0.053632]
[1735730121781,0.053629,93415.0,93414.0,0.053629]
[1735730123002,0.15241064,93415.0,93414.0,0.053629]
[1735730123678,0.09878164,93415.0,93414.0,0.053629]
[1735730125886,0.06448402,93417.0,93407.0,0.37194234]
[1735730126197,0.06448402,93417.0,93416.0,0.053628]
[1735730127494,0.06448402,93417.0,93416.0,0.054628]
[1735730129199,0.163265,93417.0,93416.0,0.054628]
[1735730129782,0.109637,93417.0,93416.0,0.054628]
[1735730130588,0.09878098,93417.0,93416.0,0.054628]
[1735730130995,0.09878098,93417.0,93416.0,0.053628]
[1735730131300,0.09878098,93417.0,93416.0,0.054628]
[1735730131595,0.00160615,93419.0,93418.0,0.053627]
[1735730136004,0.00160615,93419.0,93415.0,0.3608]
[1735730136005,0.3608,93437.0,93415.0,0.3608]
[1735730136197,0.3608,93437.0,93410.0,0.0622]
[1735730136198,0.053615,93438.0,93437.0,0.053616]
[1735730136501,0.053613,93443.0,93442.0,0.053612]
[1735730137701,0.0323,93449.0,93444.0,0.053612]
[1735730138002,0.0323,93449.0,93448.0,0.05361]
[1735730140194,0.0323,93449.0,93448.0,0.05461]
[1735730140898,0.3608,93450.0,93448.0,0.05461]
[1735730140899,0.3608,93450.0,93449.0,0.053609]
[1735730142494,0.3608,93450.0,93449.0,0.084609]
[1735730143204,0.01099788,93457.0,93449.0,0.445409]
[1735730143408,0.0317,93461.0,93449.0,0.445409]
[1735730143595,0.0317,93461.0,93460.0,0.053603]
[1735730145511,0.00160564,93462.0,93461.0,0.053602]
[1735730151404,0.05520764,93462.0,93461.0,0.053602]
[1735730153213,0.053606,93455.0,93454.0,0.06471867]
[1735730153410,0.053606,93455.0,93454.0,0.053606]
[1735730154017,0.053606,93455.0,93449.0,0.3608]
[1735730154204,0.053608,93450.0,93449.0,0.414408]
[1735730156111,0.053608,93450.0,93449.0,0.415408]
[1735730156613,0.053608,93450.0,93449.0,0.414408]
[1735730156814,0.053608,93450.0,93449.0,0.415408]
[1735730161018,0.0309,93454.0,93453.0,0.053607]
[1735730161722,0.084506,93454.0,93453.0,0.053607]
[1735730163618,0.085506,93454.0,93453.0,0.053607]
[1735730168222,0.0319,93454.0,93453.0,0.053607]
[1735730169522,0.0309,93454.0,93453.0,0.054607]
[1735730169822,0.0309,93454.0,93453.0,0.053607]
[1735730170023,0.0319,93454.0,93453.0,0.053607]
[1735730172817,0.13063684,93454.0,93453.0,0.053607]
[1735730179433,0.12963684,93454.0,93453.0,0.054607]
[1735730179933,0.13063684,93454.0,93453.0,0.053607]
[1735730181622,0.053617,93439.0,93438.0,0.053615]
[1735730181823,0.414417,93439.0,93438.0,0.053615]
[1735730182035,0.3608,93439.0,93434.0,0.00160529]
[1735730182227,0.053617,93435.0,93434.0,0.05522229]
[1735730183129,0.048617,93435.0,93434.0,0.05522229]
[1735730183637,0.048617,93435.0,93434.0,0.06222229]
[1735730183638,0.14735384,93435.0,93434.0,0.06222229]
[1735730184025,0.14435384,93435.0,93434.0,0.06222229]
[1735730184745,0.14435384,93435.0,93434.0,0.06522229]
[1735730185035,0.045617,93435.0,93434.0,0.06522229]
[1735730191139,0.14438074,93435.0,93434.0,0.01160529]
[1735730192532,0.045617,93435.0,93434.0,0.01160529]
[1735730196938,0.045617,93435.0,93434.0,0.01]
[1735730202936,0.14438208,93435.0,93434.0,0.01]
[1735730226054,0.14438208,93435.0,93434.0,0.008]
[1735730226256,0.14438208,93435.0,93434.0,0.004]
[1735730231764,0.33171476,93439.0,93434.0,0.004]
[1735730232660,0.053613,93442.0,93434.0,0.004]
[1735730232865,0.053617,93435.0,93434.0,0.001]
[1735730233070,0.053617,93435.0,93434.0,0.004]
[1735730234967,0.24665207,93439.0,93434.0,0.004]
[1735730235668,0.053617,93435.0,93434.0,0.004]
[1735730253283,0.3608,93447.0,93434.0,0.004]
[1735730253284,0.053606,93455.0,93434.0,0.304]
[1735730253490,0.05521258,93454.0,93453.0,0.3608]
[1735730253690,0.05521258,93454.0,93453.0,0.445007]
[1735730253879,0.05521258,93454.0,93453.0,0.477007]
[1735730254789,0.06121258,93454.0,93453.0,0.477007]
[1735730255389,0.00960558,93454.0,93453.0,0.477007]
[1735730256785,0.0536,93465.0,93453.0,0.477007]
[1735730256984,0.0536,93465.0,93464.0,0.4144]